bitfinex/quotes_BTCUSD_20260125
["timestamp","ask_amount","ask_price","bid_price","bid_amount"]
[1769359149247,0.001,87947.0,87945.0,0.45283077]
[1769359149845,0.8298377,87960.0,87945.0,0.45283077]
[1769359150026,0.8298377,87960.0,87944.0,1.15204335]
[1769359150027,0.0001417,87962.0,87946.0,1.15204335]
[1769359150239,0.0001417,87962.0,87949.0,0.45283077]
[1769359157143,0.0001417,87962.0,87951.0,0.45958349]
[1769359157319,1.10131621,87961.0,87951.0,0.45958349]
[1769359157540,0.0001417,87962.0,87951.0,0.45958349]
[1769359157943,0.0001417,87962.0,87951.0,1.54066887]
[1769359158308,0.0001417,87962.0,87951.0,0.45958349]
[1769359159215,1.09753571,87950.0,87925.0,0.01137332]
[1769359159391,1.09753571,87950.0,87928.0,1.08108538]
[1769359159392,1.27229571,87950.0,87928.0,1.08108538]
[1769359159571,1.27229571,87950.0,87930.0,1.08108538]
[1769359159772,1.09759363,87948.0,87931.0,0.45958349]
[1769359159994,0.11209566,87947.0,87931.0,0.45958349]
[1769359160207,0.11209566,87947.0,87932.0,1.08108538]
[1769359160510,1.27203621,87950.0,87933.0,0.45958349]
[1769359160710,0.11210129,87949.0,87933.0,0.45958349]
[1769359161113,0.11210129,87949.0,87935.0,1.08108538]
[1769359161344,0.17444258,87950.0,87933.0,0.04595835]
[1769359161345,0.17444258,87950.0,87938.0,0.45958349]
[1769359161544,0.17444258,87950.0,87940.0,0.45958349]
[1769359161759,0.17444258,87950.0,87942.0,0.45958349]
[1769359162164,0.175043,87953.0,87943.0,1.08108538]
[1769359162306,0.0456617,87962.0,87930.0,0.37086928]
[1769359162307,0.17476,87961.0,87950.0,0.46944171]
[1769359162505,0.17476,87961.0,87950.0,0.45958349]
[1769359162506,0.1121352,87960.0,87950.0,0.45958349]
[1769359164139,0.11214064,87959.0,87950.0,0.45958349]
[1769359164352,0.17476,87961.0,87950.0,0.45958349]
[1769359164562,0.1121402,87960.0,87950.0,0.45958349]
[1769359165133,0.1121402,87960.0,87951.0,0.04595835]
[1769359165343,0.1121402,87959.0,87950.0,0.45958349]
[1769359165545,0.1121402,87958.0,87950.0,0.45958349]
[1769359165742,0.1121402,87957.0,87950.0,0.45958349]
[1769359166047,0.0001417,87962.0,87950.0,0.45958349]
[1769359166845,0.0001417,87962.0,87932.0,0.17476]
[1769359166846,0.13449788,87988.0,87952.0,0.45958349]
[1769359167053,0.05352,87982.0,87966.0,0.45958349]
[1769359167436,1.15880333,87982.0,87966.0,0.45958349]
[1769359171337,1.15880333,87982.0,87955.0,0.17476]
[1769359171338,0.45666564,87986.0,87982.0,0.00985822]
[1769359171535,1.10528333,87986.0,87982.0,0.00985822]
[1769359171769,1.10528333,87986.0,87969.0,0.45958349]
[1769359171903,0.001,87982.0,87969.0,0.45958349]
[1769359172307,1.56194897,87986.0,87969.0,0.45958349]
[1769359172535,1.10528333,87985.0,87969.0,0.45958349]
[1769359173596,1.09632888,87982.0,87962.0,0.45702686]
[1769359173813,1.09632888,87981.0,87962.0,0.45702686]
[1769359174255,1.09632888,87981.0,87963.0,0.45644086]
[1769359175775,1.09532432,87981.0,87963.0,0.45644086]
[1769359176208,0.48099109,87979.0,87955.0,0.17476]
[1769359176363,1.09632888,87976.0,87956.0,0.45702686]
[1769359176570,0.48099109,87976.0,87956.0,0.45702686]
[1769359176771,1.09632888,87975.0,87956.0,0.45702686]
[1769359177384,0.48099109,87976.0,87941.0,1.14774733]
[1769359177385,0.48099109,87974.0,87941.0,1.14774733]
[1769359177580,0.48099109,87970.0,87950.0,0.17472]
[1769359177853,1.62655575,87969.0,87950.0,1.32246733]
[1769359178023,1.57731997,87969.0,87956.0,0.001]
[1769359178318,1.57731997,87969.0,87951.0,0.45702686]
[1769359178522,1.57731997,87969.0,87952.0,0.45702686]
[1769359178925,1.57731997,87969.0,87953.0,0.45702686]
[1769359179151,0.17472,87977.0,87943.0,1.14774733]
[1769359179152,1.09632888,87968.0,87943.0,1.14774733]
[1769359179307,1.09632888,87968.0,87941.0,0.0001417]
[1769359179308,1.09632888,87967.0,87948.0,0.45702686]
[1769359179513,0.01136699,87974.0,87948.0,0.45702686]
[1769359179514,1.09632888,87965.0,87948.0,0.45702686]
[1769359180439,0.01136725,87972.0,87945.0,0.17472]
[1769359180440,1.09632888,87963.0,87945.0,0.17472]
[1769359180613,0.48099109,87961.0,87951.0,0.001]
[1769359180810,0.01136751,87970.0,87941.0,0.0001417]
[1769359180811,1.09162596,87958.0,87941.0,0.0001417]
[1769359181010,0.48099109,87955.0,87941.0,0.0001417]
[1769359181258,1.09162596,87954.0,87941.0,0.0001417]
[1769359181587,0.17472,87964.0,87941.0,0.0001417]
[1769359181794,1.26634596,87964.0,87944.0,1.60477419]
[1769359182021,0.48099109,87963.0,87944.0,1.60477419]
[1769359182203,1.09162596,87962.0,87944.0,1.60477419]
[1769359182355,0.48099109,87962.0,87944.0,1.60477419]
[1769359182563,1.09162596,87961.0,87944.0,1.60477419]
[1769359182974,1.09162596,87961.0,87945.0,0.45702686]
[1769359183174,0.17472,87964.0,87946.0,0.45702686]
[1769359183397,0.17472,87964.0,87941.0,0.0001417]
[1769359183398,0.17472,87964.0,87947.0,1.60477419]
[1769359183677,1.09162596,87963.0,87947.0,0.45702686]
[1769359184139,1.09162596,87962.0,87947.0,0.45702686]
[1769359185848,1.57261705,87972.0,87949.0,0.45702686]
[1769359186048,0.11230122,87971.0,87963.0,1.60477419]
[1769359186227,0.98850789,87980.0,87963.0,1.60477419]
[1769359186421,0.11231434,87979.0,87963.0,1.60477419]
[1769359186746,1.10082223,87979.0,87963.0,1.60477419]
[1769359186943,0.11231434,87978.0,87963.0,1.60477419]
[1769359187686,0.11231434,87978.0,87965.0,0.45702686]
[1769359187903,0.11231434,87977.0,87965.0,0.45702686]
[1769359188057,0.11231434,87976.0,87965.0,0.45702686]
[1769359188257,0.11231434,87975.0,87956.0,1.14774733]
[1769359188592,0.98850789,87977.0,87961.0,0.45702686]
[1769359188800,0.11226084,87976.0,87961.0,0.45702686]
[1769359189480,0.11226084,87975.0,87961.0,0.45702686]
[1769359190071,0.98850789,87977.0,87961.0,0.45702686]
[1769359190290,0.11226008,87976.0,87961.0,0.45702686]
[1769359190873,0.11226008,87976.0,87962.0,1.14774733]
[1769359191242,0.11226008,87975.0,87962.0,1.14774733]
[1769359191360,0.11226008,87974.0,87962.0,1.14774733]
[1769359191590,0.11226008,87973.0,87962.0,1.14774733]
[1769359191788,0.98850789,87978.0,87962.0,1.14774733]
[1769359191996,0.11228287,87977.0,87962.0,1.14774733]
[1769359193896,0.98850789,87976.0,87961.0,0.45702686]
[1769359194020,0.11228287,87975.0,87961.0,0.45702686]
[1769359194467,0.11228287,87975.0,87955.0,0.192192]
[1769359194468,0.10242465,87975.0,87963.0,0.45702686]
[1769359194674,0.17472,87984.0,87967.0,0.45702686]
[1769359194847,1.07834644,87988.0,87969.0,0.45702686]
[1769359195048,1.16322789,87987.0,87969.0,0.45702686]
[1769359195252,0.65571109,87987.0,87969.0,0.45702686]
[1769359195487,0.98850789,87986.0,87969.0,0.45702686]
[1769359197584,0.98850789,87986.0,87970.0,1.14774733]
[1769359198195,0.48099109,87987.0,87970.0,1.14774733]
[1769359198403,0.0001785,87990.0,87974.0,1.14774733]
[1769359198619,0.00032025,87990.0,87977.0,0.45702686]
[1769359199298,0.08983855,88001.0,87981.0,0.45702686]
[1769359199432,3.93868528,87986.0,87985.0,1.1591129]
[1769359199630,1.67506419,87986.0,87982.0,0.17472]
[1769359199931,1.6295143,87986.0,87983.0,0.17472]
[1769359200183,1.59536441,87986.0,87984.0,0.57425863]
[1769359200386,1.59536441,87986.0,87983.0,0.17472]
[1769359200387,1.59536441,87986.0,87985.0,1.03128549]
[1769359200702,1.35608219,87986.0,87985.0,1.03128549]
[1769359200890,1.30484234,87986.0,87985.0,1.03128549]
[1769359201098,1.26497055,87986.0,87985.0,1.03128549]
[1769359201270,1.21937055,87986.0,87985.0,1.03128549]
[1769359201478,1.17383077,87986.0,87985.0,0.45702686]
[1769359201684,1.17383077,87986.0,87984.0,0.001]
[1769359201685,1.10632888,87985.0,87984.0,0.001]
[1769359201884,0.01,87985.0,87981.0,0.00014175]
[1769359202102,1.10632888,87985.0,87970.0,0.17472]
[1769359202325,1.58740048,87985.0,87971.0,0.017472]
[1769359202530,0.01008051,87985.0,87971.0,0.47449886]
[1769359202899,1.10640939,87985.0,87971.0,0.47449886]
[1769359203107,0.46373056,87985.0,87970.0,0.17472]
[1769359203349,0.29651881,87980.0,87970.0,0.17472]
[1769359203926,1.07721173,87977.0,87970.0,0.17472]
[1769359204137,1.07721173,87975.0,87960.0,0.22016]
[1769359204338,1.07721173,87971.0,87960.0,0.22016]
[1769359205117,0.45365005,87974.0,87960.0,0.22016]
[1769359205969,8.051e-05,87985.0,87969.0,0.45819952]
[1769359206171,0.69095856,87986.0,87973.0,0.45819952]
[1769359206380,0.69095856,87986.0,87975.0,0.45819952]
[1769359206809,0.69095856,87986.0,87974.0,0.17468]
[1769359206810,0.69095856,87986.0,87977.0,0.45819952]
[1769359207021,0.69095856,87986.0,87982.0,0.09808976]
[1769359207022,0.47753442,87986.0,87982.0,0.09808976]
[1769359207217,0.37399586,87986.0,87983.0,0.45819952]
[1769359207376,0.32269586,87986.0,87976.0,0.01136673]
[1769359207576,0.27709586,87986.0,87982.0,0.45819952]
[1769359207790,0.25999586,87986.0,87984.0,0.49835072]
[1769359207991,0.25999586,87986.0,87984.0,0.45819952]
[1769359208199,0.25999586,87986.0,87974.0,0.17468]
[1769359208200,0.01,87984.0,87975.0,0.45819952]
[1769359209487,0.01,87984.0,87976.0,0.0411512]
[1769359209662,1.15328293,87985.0,87977.0,0.17468]
[1769359209874,0.25999586,87986.0,87977.0,0.17468]
[1769359210274,0.25999586,87986.0,87977.0,0.07612693]
[1769359212645,1.15328293,87985.0,87977.0,0.07612693]
[1769359212872,1.15328293,87983.0,87977.0,0.07612693]
[1769359213263,0.25999586,87986.0,87977.0,0.07612693]
[1769359213622,0.01,87977.0,87973.0,8.051e-05]
[1769359213825,1.15328293,87976.0,87973.0,8.051e-05]
[1769359214282,1.15328293,87976.0,87961.0,0.17468]
[1769359214283,1.60540006,87975.0,87961.0,0.17468]
[1769359214487,0.46730397,87973.0,87961.0,0.17468]
[1769359214658,1.13809609,87971.0,87961.0,0.17468]
[1769359215456,1.13809609,87971.0,87956.0,0.01136932]
[1769359215673,1.13809609,87971.0,87957.0,0.01136919]
[1769359215826,1.13809609,87971.0,87958.0,0.04543604]
[1769359216054,0.46505492,87972.0,87959.0,0.01136893]
[1769359216251,0.46505492,87972.0,87958.0,0.04543604]
[1769359216252,1.13809609,87976.0,87958.0,0.04637337]
[1769359216426,0.49262467,87974.0,87959.0,0.00093731]
[1769359216628,0.49262467,87974.0,87958.0,0.04637425]
[1769359216629,1.13809609,87973.0,87958.0,0.04637425]
[1769359216840,1.13809609,87973.0,87959.0,0.03513671]
[1769359217204,1.13809609,87972.0,87958.0,0.00093821]
[1769359217374,1.13809609,87972.0,87958.0,0.001]
[1769359217802,1.63072076,87970.0,87958.0,0.001]
[1769359218018,1.13809609,87969.0,87958.0,0.001]
[1769359218651,1.13809609,87969.0,87953.0,0.04641855]
[1769359218851,1.13809609,87969.0,87953.0,0.09976966]
[1769359219156,0.49262467,87969.0,87953.0,0.19685107]
[1769359219311,0.49262467,87969.0,87957.0,0.01136919]
[1769359219515,0.49262467,87969.0,87954.0,0.01136957]
[1769359219709,0.49262467,87969.0,87955.0,0.01136945]
[1769359219916,0.49262467,87969.0,87956.0,0.01136932]
[1769359220141,7.515e-05,87970.0,87959.0,0.01136893]
[1769359220513,7.515e-05,87970.0,87961.0,0.01136867]
[1769359220751,7.515e-05,87970.0,87960.0,0.087884]
[1769359221444,0.01136466,87992.0,87960.0,0.087884]
[1769359221445,1.1323533,88001.0,87981.0,0.01706609]
[1769359221708,1.13242849,88001.0,87982.0,0.10995377]
[1769359221885,0.49262467,88000.0,87983.0,0.01136583]
[1769359222091,1.16474405,87999.0,87982.0,0.12131973]
[1769359222302,0.49262467,88000.0,87982.0,0.12131973]
[1769359222303,0.49262467,88000.0,87987.0,0.01136531]
[1769359222505,1.65736872,88000.0,87983.0,0.01437192]
[1769359222704,1.16474405,87999.0,87983.0,0.01437192]
[1769359223090,1.16474405,87999.0,87983.0,0.02573775]
[1769359223293,1.16474405,87999.0,87983.0,0.01437192]
[1769359223698,1.16474405,87999.0,87984.0,0.0383771]
[1769359224036,1.16474405,87999.0,87984.0,0.0270114]
[1769359224629,1.16474405,87999.0,87982.0,0.10824667]
[1769359224798,1.16474405,87999.0,87983.0,0.00533283]
[1769359225133,1.16474405,87999.0,87983.0,0.01769866]
[1769359225342,1.16474405,87999.0,87960.0,0.06386318]
[1769359225540,0.49262467,87981.0,87964.0,0.01136828]
[1769359225746,0.49262467,87979.0,87959.0,0.04548]
[1769359225922,1.16474405,87976.0,87960.0,0.0113688]
[1769359226522,1.16474405,87976.0,87959.0,0.05124784]
[1769359226874,1.16474405,87976.0,87964.0,0.001]
[1769359227816,1.16474405,87976.0,87959.0,0.1194614]
[1769359228043,0.49262467,87977.0,87961.0,0.00576784]
[1769359228650,0.49262467,87977.0,87961.0,0.01713651]
[1769359228919,0.49262467,87977.0,87951.0,0.11037505]
[1769359228920,0.49262467,87975.0,87951.0,0.11037505]
[1769359229052,1.16666666,87972.0,87946.0,0.12174566]
[1769359229260,0.17468,87977.0,87948.0,0.01137035]
[1769359229261,0.49262467,87969.0,87948.0,0.01137035]
[1769359229466,0.17468,87977.0,87948.0,0.01137035]
[1769359229467,1.65929133,87968.0,87948.0,0.01137035]
[1769359229670,1.65929133,87968.0,87948.0,0.1217454]
[1769359229916,1.65929133,87968.0,87950.0,0.01137009]
[1769359230319,0.49262467,87968.0,87950.0,0.01144524]
[1769359230472,1.16666666,87967.0,87950.0,0.01144524]
[1769359230813,1.16666666,87967.0,87951.0,0.06821974]
[1769359231016,0.49262467,87968.0,87961.0,0.001]
[1769359231156,0.49262467,87973.0,87961.0,0.001]
[1769359231362,0.17468,87977.0,87954.0,0.01136957]
[1769359231363,1.65929133,87972.0,87957.0,0.01136919]
[1769359232073,0.49262467,87972.0,87957.0,0.01136919]
[1769359232281,1.65929133,87972.0,87958.0,0.01136906]
[1769359232483,1.16666666,87971.0,87957.0,0.01136919]
[1769359232676,1.16666666,87971.0,87959.0,0.01136893]
[1769359232878,1.16666666,87971.0,87960.0,0.0113688]
[1769359233470,1.16666666,87971.0,87959.0,0.00090077]
[1769359233673,1.16666666,87971.0,87959.0,0.0122697]
[1769359234044,1.16666666,87971.0,87959.0,0.00090077]
[1769359234226,1.16666666,87971.0,87959.0,0.0122697]
[1769359234413,0.0001366,87992.0,87976.0,0.01136673]
[1769359234753,0.0001366,87992.0,87979.0,0.01136634]
[1769359234932,0.0001366,87992.0,87981.0,0.01136609]
[1769359235332,0.45548023,87995.0,87983.0,0.01136583]
[1769359235532,0.01136131,88018.0,87980.0,0.01136621]
[1769359235533,0.4559788,88007.0,87991.0,0.01136479]
[1769359235697,0.4559788,88007.0,87988.0,0.14023305]
[1769359235896,0.45645155,88007.0,87990.0,0.01136492]
[1769359236095,1.16666666,88006.0,87989.0,0.01136505]
[1769359236297,1.16666666,88006.0,87988.0,0.15539289]
[1769359236523,1.16666666,88006.0,87989.0,0.01136505]
[1769359236760,1.16666666,88006.0,87988.0,0.14402771]
[1769359236926,1.16666666,88005.0,87989.0,0.01260648]
[1769359237123,1.16666666,88004.0,87989.0,0.01260648]
[1769359239214,1.16666666,88004.0,87989.0,0.02397153]
[1769359239382,1.16666666,88004.0,87990.0,0.01136492]
[1769359239938,1.16666666,88004.0,87991.0,0.01136479]
[1769359240406,1.16666666,88004.0,87991.0,0.06818861]
[1769359240601,1.16666666,88004.0,87988.0,0.12886787]
[1769359241162,1.16666666,88004.0,87988.0,0.14023305]
[1769359241571,1.16666666,88004.0,87988.0,0.12886787]
[1769359241770,0.00047275,88007.0,87983.0,0.06819441]
[1769359241771,1.16666666,88002.0,87983.0,0.05682901]
[1769359241972,1.16666666,88001.0,87987.0,0.01136531]
[1769359242808,1.16666666,88001.0,87989.0,0.06819011]
[1769359243065,1.16666666,88001.0,87990.0,0.01136492]
[1769359243460,1.16666666,88001.0,87985.0,0.01136557]
[1769359243672,1.16666666,88001.0,87987.0,0.01136531]
[1769359243879,1.16666666,88001.0,87986.0,0.01231969]
[1769359244085,0.4559788,88000.0,87977.0,0.0113666]
[1769359244322,1.16666666,87997.0,87978.0,0.12130468]
[1769359244513,0.17468,88004.0,87978.0,0.12130468]
[1769359244514,1.16666666,87994.0,87978.0,0.00090306]
[1769359244658,0.4559788,87991.0,87974.0,0.01228913]
[1769359244860,0.4559788,87989.0,87974.0,0.00092214]
[1769359245103,1.16666666,87986.0,87970.0,0.00092214]
[1769359245305,1.16666666,87982.0,87969.0,0.04640214]
[1769359245512,0.4559788,87987.0,87969.0,0.04548]
[1769359245691,0.17468,87990.0,87978.0,0.001]
[1769359245692,1.16666666,87984.0,87978.0,0.001]
[1769359245891,1.62264546,87984.0,87978.0,0.001]
[1769359246085,1.16666666,87984.0,87978.0,0.001]
[1769359246490,0.00047275,88007.0,87978.0,0.001]
[1769359246690,0.17468,88006.0,87979.0,0.00907106]
[1769359246898,1.16666666,88004.0,87979.0,0.00907106]
[1769359247096,0.4559788,88001.0,87979.0,0.00907106]
[1769359247293,0.17468,88006.0,87979.0,0.00907106]
[1769359247294,1.16666666,87998.0,87979.0,0.00907106]
[1769359247650,1.16666666,87994.0,87979.0,0.00907106]
[1769359247831,1.16666666,87992.0,87979.0,0.00814907]
[1769359248167,1.16666666,87992.0,87977.0,0.01228859]
[1769359248168,1.16666666,87991.0,87977.0,0.01228859]
[1769359248313,1.16666666,87991.0,87976.0,0.01228872]
[1769359248906,1.16666666,87989.0,87975.0,0.00092199]
[1769359249128,1.16666666,87989.0,87975.0,0.01136686]
[1769359249347,1.16666666,87987.0,87970.0,0.001]
[1769359249658,0.00047275,88007.0,87970.0,0.001]
[1769359249659,1.62264546,87985.0,87970.0,0.01136751]
[1769359249887,1.62264546,87985.0,87968.0,0.01136777]
[1769359250018,1.62264546,87985.0,87970.0,0.01136751]
[1769359250223,0.4559788,87985.0,87973.0,0.01136712]
[1769359251062,0.4559788,87985.0,87972.0,0.01136725]
[1769359251262,0.4559788,87985.0,87969.0,0.04548]
[1769359251263,1.16666666,87984.0,87969.0,0.04548]
[1769359251525,1.16666666,87984.0,87970.0,0.001]
[1769359251976,1.16666666,87984.0,87969.0,0.05684764]
[1769359252146,1.16666666,87984.0,87972.0,0.001]
[1769359252757,1.16666666,87984.0,87972.0,0.01136725]
[1769359253226,1.16666666,87984.0,87973.0,0.01136712]
[1769359253575,1.16666666,87984.0,87970.0,0.01136751]
[1769359253767,1.16666666,87984.0,87972.0,0.01136725]
[1769359253986,1.16666666,87984.0,87973.0,0.01136712]
[1769359255153,1.16666666,87984.0,87972.0,0.01136725]
[1769359255557,1.16666666,87984.0,87973.0,0.01136712]
[1769359255862,1.16666666,87984.0,87970.0,0.3078109]
[1769359256079,1.16666666,87984.0,87972.0,0.01136725]
[1769359256299,1.16666666,87984.0,87971.0,0.01136738]
[1769359256500,1.16666666,87984.0,87970.0,0.29644339]
[1769359257323,1.16666666,87984.0,87971.0,0.01136738]
[1769359257538,1.16666666,87984.0,87970.0,0.3078109]
[1769359257874,1.16666666,87984.0,87970.0,0.29644339]
[1769359258069,1.16666666,87984.0,87970.0,0.3088109]
[1769359258498,1.16666666,87984.0,87971.0,0.01136738]
[1769359258937,1.16666666,87984.0,87970.0,0.29644339]
[1769359259999,1.16666666,87984.0,87968.0,0.12436885]
[1769359261152,0.4559788,87983.0,87964.0,0.01136828]
[1769359261358,1.16666666,87980.0,87962.0,0.12040369]
[1769359261608,1.16666666,87980.0,87965.0,0.01136815]
[1769359262210,0.17468,87987.0,87970.0,0.01136751]
[1769359262431,0.17468,87987.0,87969.0,0.15822901]
[1769359262632,0.11160278,87986.0,87957.0,0.14686137]
[1769359262778,0.4559788,87985.0,87960.0,0.40547854]
[1769359262981,0.46934196,87983.0,87960.0,0.40547854]
[1769359263178,0.46934196,87979.0,87960.0,0.40547854]
[1769359263392,1.16666666,87977.0,87960.0,0.29644339]
[1769359263592,0.46934196,87976.0,87960.0,0.29644339]
[1769359263811,0.46934196,87975.0,87960.0,0.29644339]
[1769359264011,1.16666666,87974.0,87960.0,0.29644339]
[1769359264853,0.46934196,87975.0,87960.0,0.29644339]
[1769359265072,1.16666666,87974.0,87960.0,0.29644339]
[1769359265378,1.16666666,87974.0,87960.0,0.30881219]
[1769359265579,0.46934196,87975.0,87962.0,0.01136854]
[1769359265967,0.46934196,87975.0,87961.0,0.01136867]
[1769359266198,0.46934196,87975.0,87962.0,0.01136854]
[1769359266403,0.46934196,87975.0,87961.0,0.01136867]
[1769359266522,0.46934196,87975.0,87960.0,0.29744339]
[1769359266928,1.16666666,87974.0,87960.0,0.29744339]
[1769359267170,1.16666666,87970.0,87960.0,0.29744339]
[1769359267370,1.16666666,87970.0,87960.0,0.001]
[1769359267574,0.46934196,87969.0,87957.0,7.515e-05]
[1769359267770,1.16666666,87956.0,87948.0,0.0002899]
[1769359268015,1.16666666,87956.0,87948.0,0.0004316]
[1769359268426,1.16666666,87956.0,87944.0,0.01137087]
[1769359268583,1.16666666,87956.0,87943.0,0.00957917]
[1769359268584,1.16680834,87956.0,87946.0,0.10903515]
[1769359268802,1.16680834,87956.0,87946.0,0.12040576]
[1769359269119,1.16680834,87956.0,87946.0,0.10903515]
[1769359269955,1.1326569,87956.0,87946.0,0.10903515]
[1769359270465,1.1326569,87956.0,87946.0,0.12040576]
[1769359270741,1.1326569,87956.0,87946.0,0.10903515]
[1769359271063,1.1326569,87956.0,87943.0,0.00250974]
[1769359271219,1.1326569,87956.0,87945.0,0.10903515]
[1769359272346,1.1326569,87956.0,87945.0,0.12040589]
[1769359272859,1.15528285,87964.0,87956.0,0.00978317]
[1769359273059,0.85940485,87984.0,87956.0,0.00978317]
[1769359273060,0.46934196,87968.0,87958.0,0.05684531]
[1769359273302,0.17468,87983.0,87960.0,0.0113688]
[1769359273474,0.46934196,87981.0,87961.0,0.20084357]
[1769359273709,1.15528285,87979.0,87962.0,0.01136854]
[1769359273885,4.835e-05,87983.0,87970.0,0.30798051]
[1769359274124,4.835e-05,87983.0,87970.0,0.296613]
[1769359277673,4.835e-05,87983.0,87972.0,0.0682029]
[1769359277846,1.62969641,87997.0,87983.0,4.835e-05]
[1769359278410,0.47441356,88004.0,87990.0,0.01136492]
[1769359278581,0.47441356,88004.0,87991.0,0.01136479]
[1769359278780,0.47441356,88004.0,87990.0,0.30797792]
[1769359278985,1.62969641,88004.0,87991.0,0.01136479]
[1769359279354,0.1749699,88009.0,87991.0,0.01136479]
[1769359279546,1.33025275,88009.0,87991.0,0.01136479]
[1769359279747,1.15528285,88008.0,87991.0,0.01136479]
[1769359280009,0.0002899,88009.0,87991.0,0.01136479]
[1769359280010,1.15528285,88007.0,87991.0,0.01136479]
[1769359280182,1.15528285,88006.0,87991.0,0.01136479]
[1769359280367,1.15528285,88006.0,87990.0,0.22570369]
[1769359280954,0.47441356,88005.0,87983.0,0.01136583]
[1769359281150,1.15528285,88002.0,87981.0,0.21883714]
[1769359281373,0.47441356,87999.0,87980.0,0.01136621]
[1769359281578,0.47441356,87995.0,87981.0,0.10903515]
[1769359281895,1.62969641,87995.0,87981.0,0.10903515]
[1769359282099,1.15528285,87994.0,87976.0,0.10903515]
[1769359282319,0.47441356,87992.0,87983.0,0.001]
[1769359282521,1.62969641,87992.0,87983.0,0.001]
[1769359282708,1.15528285,87991.0,87983.0,0.001]
[1769359283334,0.47441356,87992.0,87982.0,0.01136596]
[1769359283517,0.47441356,88003.0,87992.0,0.00949327]
[1769359283747,0.47441356,88003.0,87992.0,0.00954162]
[1769359284096,1.15528285,88002.0,87992.0,0.00954162]
[1769359284653,1.15528285,88002.0,87992.0,4.835e-05]
[1769359285495,0.17468,88007.0,87993.0,0.03415144]
[1769359285693,0.0002899,88009.0,87995.0,0.01136428]
[1769359286116,0.0002899,88009.0,87994.0,0.01136441]
[1769359286265,0.0002899,88009.0,87996.0,0.01136415]
[1769359286472,0.04548,88025.0,87993.0,0.03415144]
[1769359286473,0.47415907,88019.0,87999.0,0.2487446]
[1769359286790,1.15528285,88018.0,88000.0,0.01136363]
[1769359286991,0.47441356,88017.0,88001.0,0.0113635]
[1769359287195,1.62969641,88016.0,88002.0,0.01136337]
[1769359287578,1.62969641,88016.0,88000.0,0.01136363]
[1769359287579,0.47441356,88025.0,88007.0,0.01136273]
[1769359287779,0.0001066,88016.0,88011.0,0.01136221]
[1769359288306,1.15557175,88027.0,88015.0,0.01136169]
[1769359288521,0.0002889,88027.0,88016.0,0.0001066]
[1769359288689,0.0002889,88027.0,88014.0,0.01136182]
[1769359288902,0.0002889,88027.0,88013.0,0.22595511]
[1769359289107,1.15528285,88026.0,88006.0,0.01136286]
[1769359289240,1.15528285,88025.0,88008.0,0.0113626]
[1769359289445,1.15528285,88023.0,88007.0,0.21009494]
[1769359289648,0.47441356,88020.0,87993.0,0.07230942]
[1769359289884,0.47441356,88016.0,87994.0,0.3759745]
[1769359290270,0.47441356,88012.0,87995.0,0.10903515]
[1769359290395,1.15528285,88009.0,87995.0,0.10903515]
[1769359290607,1.15528285,88008.0,87994.0,0.04548]
[1769359291440,1.15528285,88008.0,87994.0,0.05684441]
[1769359291986,0.47441356,88009.0,87997.0,0.01136402]
[1769359292414,1.15528285,88008.0,87996.0,0.01136415]
[1769359292778,1.15528285,88008.0,87994.0,0.16587956]
[1769359292978,1.15528285,88008.0,87995.0,0.10903515]
[1769359293611,1.15528285,88008.0,87995.0,0.12039943]
[1769359293814,1.15528285,88008.0,87997.0,0.01136402]
[1769359294142,0.47441356,88009.0,87997.0,0.01136402]
[1769359294143,0.47441356,88009.0,87998.0,0.01136389]
[1769359294285,0.47441356,88009.0,87999.0,0.01136376]
[1769359294487,0.17464,88022.0,88005.0,0.01136299]
[1769359294693,0.17464,88022.0,88004.0,0.01136311]
[1769359294937,0.17464,88022.0,88005.0,0.03415144]
[1769359295168,0.66718163,88022.0,88005.0,0.04551443]
[1769359295338,1.15528285,88021.0,88005.0,0.04551443]
[1769359295736,0.49254163,88021.0,88004.0,0.21459366]
[1769359295937,1.15528285,88020.0,88004.0,0.21459366]
[1769359296342,1.15528285,88020.0,88004.0,0.22595677]
[1769359296540,1.15528285,88020.0,88004.0,0.21459366]
[1769359297094,1.15528285,88018.0,87995.0,0.12039943]
[1769359297241,0.49254163,88015.0,87995.0,0.10903515]
[1769359297463,1.15528285,88013.0,87995.0,0.10903515]
[1769359297890,1.15528285,88013.0,87996.0,0.10903515]
[1769359298302,1.15528285,88011.0,87992.0,4.835e-05]
[1769359298476,0.18600079,88022.0,87993.0,0.10903515]
[1769359298477,0.49254163,88008.0,87993.0,0.10903515]
[1769359298677,0.49254163,88006.0,87993.0,0.10903515]
[1769359299091,0.49254163,88006.0,87992.0,4.835e-05]
[1769359299294,1.64782448,88006.0,87992.0,4.835e-05]
[1769359299959,1.64782448,88006.0,87993.0,0.001]
[1769359300467,1.64782448,88006.0,87992.0,4.835e-05]
[1769359300835,1.64782448,88006.0,87992.0,0.00104835]
[1769359301067,0.18600234,88010.0,87977.0,0.1482]
[1769359301258,1.1549334,87991.0,87982.0,0.10903515]
[1769359302030,1.1549334,87991.0,87977.0,0.06309666]
[1769359302215,1.1549334,87991.0,87981.0,0.10903515]
[1769359302806,0.49254163,87995.0,87981.0,0.10903515]
[1769359302981,0.4930141,88010.0,87991.0,0.26356245]
[1769359303212,0.4930141,88010.0,87995.0,0.10903515]
[1769359303420,0.00047247,88010.0,87996.0,0.24270439]
[1769359303606,5.906e-05,88010.0,88001.0,0.27790418]
[1769359304156,5.906e-05,88010.0,88001.0,0.24270439]
[1769359304504,0.49254163,88017.0,88001.0,0.24270439]
[1769359304663,1.1549334,88016.0,88001.0,0.24270439]
[1769359305497,1.64747503,88016.0,87996.0,0.28756186]
[1769359305854,1.1549334,88015.0,87997.0,0.01136402]
[1769359306014,1.1549334,88015.0,87996.0,0.29892601]
[1769359306454,1.1549334,88015.0,87997.0,0.29892588]
[1769359306846,1.1549334,88015.0,87997.0,0.35574548]
[1769359307047,1.1549334,88015.0,87998.0,0.01136389]
[1769359307285,1.1549334,88013.0,87992.0,0.01136466]
[1769359307487,0.49254163,88012.0,87998.0,0.10903515]
[1769359307694,1.1549334,88010.0,87998.0,0.10903515]
[1769359308057,1.1549334,88010.0,87991.0,0.05682395]
[1769359308058,0.49254163,88009.0,87991.0,0.01136479]
[1769359308241,1.1549334,88008.0,87995.0,0.01136428]
[1769359308861,1.1549334,88008.0,87994.0,0.01136441]
[1769359309206,0.49254163,88011.0,87994.0,0.01136441]
[1769359309407,0.49254163,88011.0,87996.0,0.01136415]
[1769359309611,1.1549334,88010.0,87993.0,0.25576209]
[1769359309913,1.1549334,88007.0,87990.0,0.38175353]
[1769359310076,1.1549334,88007.0,87990.0,0.01136492]
[1769359310279,0.49254163,88006.0,87988.0,0.26712727]
[1769359310487,1.12080022,88003.0,87989.0,0.01175633]
[1769359310689,1.6360973,88002.0,87990.0,0.01136492]
[1769359310890,1.56783094,88002.0,87990.0,0.01136492]
[1769359311238,1.53369776,88002.0,87990.0,0.01136492]
[1769359311375,1.49956458,88002.0,87989.0,0.12079148]
[1769359311714,1.10942132,88002.0,87990.0,0.01136492]